bitfinex-derivatives/quotes_ETHF0:USTF0_20250314
["timestamp","ask_amount","ask_price","bid_price","bid_amount"]
[1741961688583,3.2078,1902.7,1902.3,11.0494]
[1741961688885,3.2078,1902.7,1902.3,12.10084]
[1741961689081,1.05128,1902.6,1902.3,11.0494]
[1741961689282,4.25904,1902.7,1902.3,12.10081]
[1741961689484,3.2078,1903.1,1902.4,3.2078]
[1741961689785,0.08750792,1903.0,1902.5,11.0007]
[1741961689984,1.05125,1902.7,1902.5,11.0007]
[1741961690186,10.6757,1903.0,1902.5,11.0007]
[1741961690376,26.999,1903.3,1902.6,3.2078]
[1741961690582,1.05116,1902.8,1902.7,11.0007]
[1741961691787,3.2078,1903.0,1902.7,11.0007]
[1741961691788,13.8835,1903.0,1902.7,11.0007]
[1741961692094,3.2078,1903.0,1902.7,11.0007]
[1741961692388,1.05114,1902.9,1902.7,12.0519]
[1741961692594,1.05114,1902.9,1902.7,11.0007]
[1741961692888,3.2078,1903.2,1902.7,12.05188]
[1741961693082,5.83482,1903.5,1902.8,3.2078]
[1741961693288,1.05101,1903.1,1902.9,12.17026]
[1741961693589,3.2078,1903.5,1903.0,3.21568415]
[1741961693794,1.05085,1903.4,1903.2,1.05094]
[1741961693994,4.2586,1903.5,1903.3,12.17008]
[1741961694185,4.2586,1903.5,1903.4,40.8]
[1741961695189,3.2078,1903.5,1903.3,11.1192]
[1741961695392,1.05083,1903.4,1903.3,11.1192]
[1741961696596,1.051,1903.1,1903.0,0.00788415]
[1741961696892,1.051,1903.1,1903.0,10.77968415]
[1741961697687,3.375,1903.3,1903.0,10.77968415]
[1741961697883,2.62697,1903.5,1903.0,10.77968415]
[1741961698087,1.05098,1903.2,1903.0,11.83072415]
[1741961698396,1.05097,1903.2,1903.0,10.77968415]
[1741961698587,3.2078,1903.4,1903.0,10.77968415]
[1741961698789,1.05096,1903.2,1903.0,11.83072415]
[1741961699290,14.3612,1903.4,1903.0,10.77968415]
[1741961699495,1.05096,1903.2,1903.0,11.83071415]
[1741961699692,14.3612,1903.4,1903.0,11.83071415]
[1741961699693,14.3612,1903.4,1903.0,10.77968415]
[1741961699890,1.051,1903.1,1903.0,10.77968415]
[1741961700296,4.425,1903.1,1903.0,0.00788415]
[1741961700496,4.51250134,1903.1,1903.0,1e-08]
[1741961700793,18.16590134,1903.1,1903.0,1e-08]
[1741961700993,15.66590134,1903.1,1903.0,1e-08]
[1741961701183,15.5784,1903.1,1903.0,1e-08]
[1741961701383,15.66592129,1903.1,1903.0,1e-08]
[1741961701588,18.87372129,1903.1,1903.0,1e-08]
[1741961701788,12.2044,1903.1,1903.0,1e-08]
[1741961701996,12.29189987,1903.1,1903.0,1e-08]
[1741961702894,12.29190254,1903.1,1903.0,1e-08]
[1741961703097,1.05157,1902.1,1902.0,3.2078]
[1741961703295,3.2078,1902.4,1902.0,40.8]
[1741961703489,1.05155,1902.1,1902.0,51.923]
[1741961703797,1.05155,1902.1,1902.0,11.123]
[1741961704187,3.2078,1902.6,1902.0,51.923]
[1741961704387,3.2078,1902.6,1902.2,3.2078]
[1741961704595,3.2078,1902.6,1902.5,1.05133]
[1741961704798,3.2078,1902.6,1902.4,1.05134]
[1741961705000,3.2078,1902.6,1902.5,11.95653]
[1741961705196,3.2078,1902.6,1902.5,10.9052]
[1741961705502,11.1817,1902.9,1902.5,10.9052]
[1741961705793,1.05113,1902.9,1902.7,1.0512]
[1741961705998,12.23268,1903.2,1903.0,1.05103]
[1741961706201,1.05085,1903.4,1903.2,1.05092]
[1741961706398,3.2078,1903.5,1903.1,11.95617]
[1741961706399,1.0509,1903.3,1903.1,11.95617]
[1741961706595,1.05087,1903.4,1903.1,11.96405415]
[1741961706796,1.05094,1903.2,1903.1,10.91308415]
[1741961707501,11.1817,1903.4,1903.1,10.91308415]
[1741961707699,1.05093,1903.3,1903.1,11.96408415]
[1741961707996,3.2078,1903.7,1903.2,3.2078]
[1741961708191,1.05083,1903.4,1903.3,11.6052]
[1741961710697,11.3198,1903.6,1903.1,0.00788415]
[1741961710900,1.05073,1903.6,1903.4,1.05078]
[1741961711396,1.95899218,1903.9,1903.5,3.2078]
[1741961711591,6.23178506,1905.0,1903.9,2.62635]
[1741961711793,1.05013,1904.7,1904.6,1.05015]
[1741961711995,1.05013,1904.7,1904.4,3.2078]
[1741961711996,12.60484928,1905.1,1904.4,5.83342]
[1741961712297,7.50182962,1905.0,1904.5,11.91711]
[1741961712497,2.62488,1905.0,1904.5,11.91711]
[1741961712795,2.62488,1905.0,1903.7,3.2078]
[1741961712796,3.2078,1904.6,1903.7,3.2078]
[1741961712996,1.05087,1903.4,1903.2,3.2078]
[1741961713300,3.371,1903.9,1903.2,3.2078]
[1741961713489,3.371,1903.9,1902.9,21.3018]
[1741961713490,23.597,1904.2,1903.7,3.2078]
[1741961713688,3.2078,1904.5,1903.8,51.818]
[1741961713898,0.08744563,1904.4,1903.8,58.4202]
[1741961714089,1.05044,1904.1,1904.0,0.00788415]
[1741961715292,7.77132107,1904.1,1904.0,4.15e-06]
[1741961715604,8.42557334,1904.1,1904.0,4.15e-06]
[1741961716101,19.70367334,1904.1,1904.0,4.15e-06]
[1741961716403,15.62380485,1904.1,1904.0,4.15e-06]
[1741961716902,16.54963584,1904.1,1904.0,4.15e-06]
[1741961717093,12.41599909,1904.1,1904.0,4.15e-06]
[1741961717592,15.62379909,1904.1,1904.0,4.15e-06]
[1741961718104,12.41599909,1904.1,1904.0,4.15e-06]
[1741961718605,1.05044,1904.1,1904.0,4.15e-06]
[1741961718798,1.05043,1904.2,1904.0,4.15e-06]
[1741961719103,0.00788415,1904.3,1904.0,10.58080415]
[1741961719300,0.10500892,1904.6,1904.1,6.5768]
[1741961719499,2.62474,1905.1,1904.4,3.2078]
[1741961719696,2.71228725,1905.0,1904.5,11.3403]
[1741961720002,2.62476,1905.1,1904.5,11.3403]
[1741961720207,1.05017,1904.6,1904.5,11.3403]
[1741961720501,1.05013,1904.7,1904.5,11.3403]
[1741961720704,3.2078,1904.9,1904.5,11.3403]
[1741961720899,1.05017,1904.6,1904.5,11.3403]
[1741961721097,1.05017,1904.6,1904.5,52.1403]
[1741961721497,0.00788001,1905.0,1904.7,1.05011]
[1741961721692,1.05004,1904.9,1904.8,11.3403]
[1741961721893,1e-08,1905.0,1904.8,13.8403]
[1741961722097,1e-08,1905.0,1904.9,13.5958]
[1741961722290,1e-08,1905.0,1904.9,24.9361]
[1741961722494,1e-08,1905.0,1904.9,34.4573]
[1741961723101,1e-08,1905.0,1904.9,31.9573]
[1741961723304,1e-08,1905.0,1904.9,28.5893]
[1741961723505,1e-08,1905.0,1904.9,31.0893]
[1741961723900,1e-08,1905.0,1904.9,34.4573]
[1741961724905,1e-08,1905.0,1904.9,75.2573]
[1741961725206,1.04995001,1905.0,1904.9,68.3393]
[1741961725394,1.04995001,1905.0,1904.9,21.5693]
[1741961725599,1.04995001,1905.0,1904.9,18.3615]
[1741961726097,1e-08,1905.0,1904.9,18.3615]
[1741961726298,1e-08,1905.0,1904.9,25.1193]
[1741961726499,1.04995001,1905.0,1904.9,21.5693]
[1741961726706,1.04995001,1905.0,1904.9,11.3403]
[1741961727806,1e-08,1905.0,1904.9,11.3403]
[1741961728111,1.04995001,1905.0,1904.9,11.3403]
[1741961728804,1e-08,1905.0,1904.9,12.3903]
[1741961729006,1.04995001,1905.0,1904.9,11.3403]
[1741961730208,1e-08,1905.0,1904.9,11.3403]
[1741961730409,1.04995001,1905.0,1904.9,11.3403]
[1741961731411,1e-08,1905.0,1904.5,9.1778]
[1741961731606,1.05017,1904.6,1904.5,5.97]
[1741961731906,11.1621,1904.9,1904.4,5.606]
[1741961732103,1.05007,1904.8,1904.6,1.05012]
[1741961732305,1.05003,1904.9,1904.7,1.05008]
[1741961732703,1.05003,1904.9,1904.8,10.4988]
[1741961733097,4.25783,1904.9,1904.8,10.4988]
[1741961733416,11.55023,1904.9,1904.8,10.4988]
[1741961734617,1.05003,1904.9,1904.8,10.4988]
[1741961735110,1.04999001,1905.0,1904.8,10.4988]
[1741961735303,1.05,1904.9,1904.8,10.4988]
[1741961735609,1e-08,1905.0,1904.9,1.05]
[1741961735816,1.05,1904.9,1904.8,10.4988]
[1741961736707,1e-08,1905.0,1904.8,10.4988]
[1741961736907,1.05,1904.9,1904.8,10.4988]
[1741961737209,11.72970001,1905.0,1904.8,11.54886]
[1741961737404,1e-08,1905.0,1904.9,1.05]
[1741961737799,1.04995001,1905.0,1904.8,10.4988]
[1741961738115,1.05,1904.9,1904.8,10.4988]
[1741961738411,1e-08,1905.0,1904.9,1.05]
[1741961738710,1.05,1904.9,1904.8,11.54883]
[1741961738915,1.05,1904.9,1904.8,10.4988]
[1741961739101,4.2578,1904.9,1904.8,10.4988]
[1741961739300,11.5988,1904.9,1904.8,10.4988]
[1741961739510,1.05,1904.9,1904.8,10.4988]
[1741961739711,1.05,1904.9,1904.8,11.54886]
[1741961740105,1.05,1904.9,1904.8,10.4988]
[1741961740906,4.2578,1904.9,1904.8,10.4988]
[1741961741111,1.05022,1904.5,1904.4,5.606]
[1741961741710,3.2078,1904.5,1904.2,47.6061]
[1741961741917,1.05033,1904.3,1904.2,40.8]
[1741961742315,1.05033,1904.3,1904.2,52.1453]
[1741961742907,2.62551,1904.6,1904.2,52.1453]
[1741961743211,2.62515,1904.8,1904.3,3.2078]
[1741961743411,2.62529,1904.7,1904.3,3.2078]
[1741961743712,1.05033,1904.3,1904.2,41.85037]
[1741961744216,1.05033,1904.3,1904.2,40.8]
[1741961744416,1.05033,1904.3,1904.2,41.85039]
[1741961744618,1.05033,1904.3,1904.2,40.8]
[1741961745818,12.04093,1904.3,1904.2,40.8]
[1741961746214,1.05033,1904.3,1904.2,40.8]
[1741961746916,2.62515,1904.8,1904.3,1.05031]
[1741961747219,1.05033,1904.3,1904.2,41.85034]
[1741961747424,1.05027,1904.5,1904.3,1.05029]
[1741961747616,16.84162,1904.7,1904.2,40.8]
[1741961747617,1.05033,1904.3,1904.2,40.8]
[1741961748423,1.05033,1904.3,1904.2,41.85039]
[1741961748726,1.05033,1904.3,1904.2,40.8]
[1741961748914,1.05033,1904.3,1904.2,41.85039]
[1741961749120,1.05033,1904.3,1904.2,40.8]
[1741961750125,1.05033,1904.3,1904.2,41.85039]
[1741961750426,1.05033,1904.3,1904.2,40.8]
[1741961750627,3.2078,1904.5,1904.4,1.05028]
[1741961751121,1.05033,1904.3,1904.2,40.8]
[1741961751330,1.05033,1904.3,1904.2,41.85036]
[1741961751821,1.05033,1904.3,1904.2,40.8]
[1741961753223,12.00832,1904.4,1904.2,40.8]
[1741961753428,1.05033,1904.3,1904.2,40.8]
[1741961753821,4.25813,1904.3,1904.2,40.8]
[1741961754328,3.361,1904.7,1904.2,40.8]
[1741961754626,16.62997,1904.8,1904.3,1.0503]
[1741961754923,2.62544,1904.6,1904.2,40.8]
[1741961755120,3.2078,1904.8,1904.3,2.62584]
[1741961755316,1.05023,1904.5,1904.4,1.05024]
[1741961755520,1.05024,1904.5,1904.4,1.05025]
[1741961755716,1.05028,1904.4,1904.3,7.6309]
[1741961755929,1.05028,1904.4,1904.3,7.63092]
[1741961756126,1.05028,1904.4,1904.3,6.5806]
[1741961756729,1.05028,1904.4,1904.2,40.8]
[1741961757028,1.05044,1904.1,1904.0,4.15e-06]
[1741961757329,1.05044,1904.1,1904.0,40.80000415]
[1741961758129,11.57534,1904.1,1904.0,40.80000415]
[1741961758327,11.57534,1904.1,1904.0,4.15e-06]
[1741961758328,14.98123079,1904.1,1904.0,4.15e-06]
[1741961758518,16.73154085,1904.1,1904.0,4.15e-06]
[1741961758724,14.23153701,1904.1,1904.0,4.15e-06]
[1741961759326,2.05795751,1904.1,1904.0,4.15e-06]
[1741961759532,1.00751751,1904.1,1904.0,1.05050415]
[1741961759835,1.05044,1904.2,1904.0,1.05050415]
[1741961760034,3.2078,1904.4,1904.0,4.15e-06]
[1741961760235,1.05044,1904.1,1904.0,4.15e-06]
[1741961760433,4.25824,1904.1,1904.0,4.15e-06]
[1741961760625,6.84560718,1904.1,1904.0,4.15e-06]
[1741961760831,17.71480718,1904.1,1904.0,4.15e-06]
[1741961761030,19.27544753,1904.1,1904.0,4.15e-06]
[1741961761226,16.77544753,1904.1,1904.0,4.15e-06]
[1741961761532,17.78245675,1904.1,1904.0,4.15e-06]
[1741961761736,21.14145675,1904.1,1904.0,4.15e-06]
[1741961762424,2.05744922,1904.1,1904.0,4.15e-06]
[1741961762736,5.83284,1904.9,1904.0,2.62621415]
[1741961762939,3.2078,1904.7,1904.1,3.2078]
[1741961763124,1.05043,1904.2,1904.0,1.05048415]
[1741961763326,1.05044,1904.2,1904.0,1.05048415]
[1741961763626,5.83341,1904.5,1904.0,1.05048415]
[1741961763627,4.25824,1904.1,1904.0,4.15e-06]
[1741961763826,15.51184,1904.1,1904.0,4.15e-06]
[1741961764033,12.30404,1904.1,1904.0,4.15e-06]
[1741961764529,16.44909484,1904.1,1904.0,4.15e-06]
[1741961764923,13.94909484,1904.1,1904.0,4.15e-06]
[1741961765530,13.94911763,1904.1,1904.0,4.15e-06]
[1741961765831,13.29500073,1904.1,1904.0,4.15e-06]
[1741961766037,13.29498693,1904.1,1904.0,4.15e-06]
[1741961766228,12.39129049,1904.1,1904.0,4.15e-06]
[1741961766529,1.05044,1904.1,1904.0,4.15e-06]
[1741961767032,11.0288,1904.3,1904.0,10.72520415]
[1741961767228,1.05044,1904.1,1904.0,10.72520415]
[1741961767836,3.2078,1904.2,1904.0,10.72520415]
[1741961768030,4.25823,1904.2,1904.0,11.77568415]
[1741961768330,3.2078,1904.2,1904.1,1.05044]
[1741961768537,3.2078,1904.5,1904.0,13.93300415]
[1741961768733,1.05039,1904.2,1904.1,1.05042]
[1741961768937,1.05039,1904.2,1904.0,13.93300415]
[1741961769137,1.05044,1904.1,1904.0,13.93300415]
[1741961769335,1.05044,1904.1,1904.0,10.72520415]
[1741961769535,6.84546457,1904.1,1904.0,4.15e-06]
[1741961770236,7.5002926,1904.1,1904.0,4.15e-06]
[1741961770434,8.40499448,1904.1,1904.0,4.15e-06]
[1741961770631,19.42079448,1904.1,1904.0,4.15e-06]
[1741961770834,2.62648,1903.9,1903.2,10.5814]
[1741961771134,1.05079,1903.5,1903.3,1.05087]
[1741961771333,1.05079,1903.5,1903.4,11.1378]
[1741961771635,18.07,1903.8,1903.4,11.1378]
[1741961771936,3.2078,1904.0,1903.5,3.2078]
[1741961772233,3.2078,1904.0,1903.6,11.1378]
[1741961772437,1.05059,1903.9,1903.7,7.82133]
[1741961772739,1.05059,1903.9,1903.8,11.1378]
[1741961773038,1.05055,1903.9,1903.8,11.1378]
[1741961773439,12.55475,1903.9,1903.8,11.1378]
[1741961773938,4.25834,1904.0,1903.8,11.1378]
[1741961774136,3.2078,1904.4,1903.8,14.3456]
[1741961774439,1.05046,1904.1,1903.9,1.05055]
[1741961774636,4.18443259,1904.6,1903.5,8.22184]
[1741961774637,3.2078,1904.6,1904.0,13.8918]
[1741961774939,3.2078,1905.1,1904.3,5.83364]
[1741961775239,0.08726304,1905.0,1904.5,3.2078]
[1741961775434,1.05014,1904.7,1904.6,10.684]
[1741961775634,1.05011,1904.7,1904.6,10.684]
[1741961776340,1.05017,1904.6,1904.5,0.00788415]
[1741961776540,3.2078,1904.7,1904.5,10.69188415]
[1741961776734,1.05017,1904.6,1904.5,10.69188415]
[1741961778342,11.1975,1904.8,1904.5,10.69188415]
[1741961778543,3.2078,1904.9,1904.5,10.69188415]
[1741961778744,5.83257,1905.1,1904.6,1.05015]
[1741961778941,1.05009,1904.8,1904.7,10.9225]
[1741961779141,5.83257,1905.1,1904.7,11.97261]
[1741961779142,1.05005,1904.9,1904.7,11.97261]
[1741961779448,1.04998,1905.0,1904.8,1.05004]
[1741961779649,1.04995,1905.0,1904.9,10.9225]
[1741961780536,11.98815,1905.0,1904.9,10.9225]
[1741961780945,3.2078,1905.3,1904.9,10.9225]
[1741961781146,1.04995,1905.0,1904.9,10.9225]
[1741961781347,4.25775,1905.0,1904.9,10.9225]
[1741961781548,1.04995,1905.0,1904.9,10.9225]
[1741961782344,3.2078,1905.2,1905.1,1.04989]
[1741961782648,1.04995,1905.0,1904.9,10.9225]
[1741961782849,1.04994,1905.1,1904.9,10.9225]
[1741961783049,16.77033,1905.4,1904.9,11.97247]
[1741961783050,14.146,1905.4,1904.9,11.97247]
[1741961783252,0.08720397,1905.3,1904.9,10.9225]
[1741961783456,1.04995,1905.0,1904.9,10.9225]
[1741961784049,5.83187,1905.6,1904.9,10.9225]
[1741961784350,1.55299781,1905.7,1905.1,3.2078]
[1741961784547,1.04969,1905.5,1905.3,1.04975]
[1741961784747,11.0317,1905.8,1905.3,1.04975]
[1741961784748,1.04966,1905.6,1905.4,11.505]
[1741961784949,5.83132,1906.0,1905.4,11.505]
[1741961785249,4.25747,1905.5,1905.4,11.505]
[1741961785455,1.04967,1905.5,1905.4,11.505]
[1741961785855,1.04973,1905.4,1905.3,0.00788415]
[1741961786061,1.13623963,1905.4,1905.3,0.00788415]
[1741961786254,6.5618,1905.8,1905.3,10.81958415]
[1741961786450,1.04964,1905.6,1905.3,10.81958415]
[1741961786764,9.18559,1905.8,1905.3,10.81958415]
[1741961787062,11.3587,1905.7,1905.3,10.81958415]
[1741961787352,1.04973,1905.4,1905.3,10.81958415]
[1741961788059,1.13626467,1905.4,1905.3,0.00788415]
[1741961788260,12.49496467,1905.4,1905.3,0.00788415]
[1741961789145,12.40843,1905.4,1905.3,0.00788415]
[1741961789351,1.04973,1905.4,1905.3,0.00788415]
[1741961789947,12.29673459,1905.4,1905.3,0.00788415]
[1741961790249,19.70026697,1905.4,1905.3,4.15e-06]
[1741961790453,15.64973459,1905.4,1905.3,4.15e-06]
[1741961790653,4.48933459,1905.4,1905.3,4.15e-06]
[1741961790856,1.04973,1905.4,1905.3,4.15e-06]
[1741961791061,1.13634293,1905.4,1905.3,4.15e-06]
[1741961791362,1.04973,1905.4,1905.3,4.15e-06]
[1741961791555,1.13635186,1905.4,1905.3,4.15e-06]
[1741961792362,1.04973,1905.4,1905.3,4.15e-06]
[1741961795456,12.68231248,1905.4,1905.3,4.15e-06]
[1741961795656,15.18231248,1905.4,1905.3,4.15e-06]
[1741961795863,15.09573,1905.4,1905.3,4.15e-06]
[1741961796255,2.62446,1905.3,1904.3,10.0133]
[1741961796460,1.05027,1904.5,1904.4,11.2448]
[1741961796660,5.833,1904.8,1904.4,11.2448]
[1741961796859,1.05022,1904.5,1904.4,11.2448]
[1741961797058,1.05022,1904.5,1904.1,5.5851]
[1741961797059,3.351,1904.5,1904.1,5.5851]
[1741961797259,14.17176,1904.4,1903.9,6.8055]
[1741961797464,14.17176,1904.4,1904.1,0.00788415]
[1741961797465,11.546,1904.4,1904.1,0.00788415]
[1741961797665,3.35888415,1904.5,1904.1,1.05832415]
[1741961797866,1.05039,1904.2,1904.1,0.00788415]
[1741961799066,1.05055,1903.9,1903.8,40.8]
[1741961799265,1.05078,1903.5,1903.4,7.1768]
[1741961799773,14.2041,1903.8,1903.5,1.05076]
[1741961799970,1.05068,1903.7,1903.4,7.1768]
[1741961800167,10.9963,1903.8,1903.4,8.2276]
[1741961800363,3.2078,1904.0,1903.5,10.4913]
[1741961800569,1.05071,1903.7,1903.5,10.4913]
[1741961800871,10.9963,1904.0,1903.5,10.4913]
[1741961801063,1.05056,1903.9,1903.7,1.05065]
[1741961801265,3.2078,1904.1,1903.8,10.4913]
[1741961801567,3.2078,1904.4,1903.9,3.2078]
[1741961801869,3.2078,1904.4,1904.0,24.0426]
[1741961802067,14.4806,1904.4,1904.0,24.0426]
[1741961802273,1.05044,1904.1,1904.0,24.0426]
[1741961802661,0.00788415,1904.5,1904.0,24.0426]
[1741961802869,1.05035,1904.3,1904.1,1.05042]
[1741961803172,1.05035,1904.3,1904.2,11.3817]
[1741961803582,0.00788415,1904.5,1904.2,11.3817]
[1741961803774,1.05032,1904.4,1904.3,40.8]
[1741961804070,1.05813415,1904.5,1904.3,41.85033]
[1741961804271,1.05813415,1904.5,1904.4,10.8338]
[1741961804970,1.05028,1904.4,1904.3,40.8]
[1741961805166,1.05044,1904.1,1904.0,23.4947]
[1741961805572,1.05044,1904.1,1904.0,64.2947]
[1741961805777,1.05044,1904.1,1904.0,58.7546]
[1741961805967,1.05044,1904.1,1904.0,40.8]
[1741961806268,1.0503,1904.4,1904.0,40.8]
[1741961806464,0.00788415,1904.5,1904.1,14.0416]
[1741961806667,0.00788415,1904.5,1904.2,17.579]
[1741961807170,1.05032,1904.4,1904.2,17.579]
[1741961807473,0.00788415,1904.5,1904.3,1.05032]
[1741961807775,0.00788415,1904.5,1904.4,10.9491]
[1741961807965,1.05033,1904.3,1904.2,6.7452]
[1741961808476,1.05033,1904.3,1904.0,41.85046]
[1741961808477,1.05044,1904.1,1904.0,40.8]
[1741961808674,1.05041,1904.2,1904.1,10.9491]
[1741961809767,1.05044,1904.1,1904.0,40.8]
[1741961809970,1.05044,1904.1,1904.0,10.9491]
[1741961810170,1.05055,1903.9,1903.8,6.9006]
[1741961810374,1.05055,1903.9,1903.8,17.672]
[1741961810573,1.05055,1903.9,1903.8,58.472]
[1741961811367,1.05054,1904.0,1903.8,59.52261]
[1741961811574,1.05044,1904.2,1904.0,1.05048]
[1741961811766,1.05044,1904.2,1904.1,10.7714]
[1741961812166,4.25824,1904.2,1904.1,10.7714]
[1741961812367,1.05055,1903.9,1903.8,47.7006]
[1741961812972,1.05072,1903.7,1903.5,4.25856]
[1741961813167,2.62653,1903.8,1903.4,12.46218415]
[1741961813368,1.05078,1903.5,1903.4,12.46218415]
[1741961813773,1.05078,1903.5,1903.4,23.18418415]
[1741961813969,1.05078,1903.5,1903.4,0.00788415]
[1741961814278,4.25858,1903.5,1903.4,0.00788415]
[1741961814478,1.05078,1903.5,1903.4,0.00788415]
[1741961815874,6.5568,1903.7,1903.4,0.00788415]
[1741961816067,1.05078,1903.5,1903.4,0.00788415]
[1741961816377,1.05078,1903.5,1903.4,10.72988415]
[1741961816879,1.05078,1903.5,1903.4,0.00788415]
[1741961818878,1.051,1903.1,1903.0,6.919]
[1741961819072,1.05105,1903.0,1902.9,10.971]
[1741961819276,1.05105,1903.0,1902.1,7.88639]
[1741961819277,3.2078,1903.0,1901.6,3.2078]
[1741961819477,3.2078,1902.6,1902.2,11.4115]
[1741961819684,3.348,1903.0,1902.6,1.05125]
[1741961819881,1.05121,1902.8,1902.7,11.4115]
[1741961820375,0.00788415,1903.0,1902.7,11.4115]
[1741961820575,1.05116,1902.8,1902.7,11.4115]
[1741961821073,0.00788415,1903.0,1902.9,1.05111]
[1741961821473,1.05116,1902.8,1902.7,11.4115]
[1741961822476,1.05122,1902.7,1902.6,0.00788415]
[1741961822680,11.62942,1902.7,1902.6,0.00788415]
[1741961823377,11.62942,1902.7,1901.9,1.05162]
[1741961823378,13.0782,1902.7,1901.9,1.05162]
[1741961823578,5.8364,1902.3,1901.9,17.7123]
[1741961823778,10.5782,1902.2,1901.9,17.7123]
[1741961824082,10.5782,1902.2,1902.0,40.8]
[1741961824273,11.62969,1902.2,1902.1,10.7189]
[1741961824477,1.05145,1902.3,1902.1,11.7704]
[1741961824786,1.05126,1902.7,1902.5,1.05131]
[1741961824983,3.2078,1902.8,1902.6,10.7189]
[1741961825278,1.05155,1902.1,1902.0,40.8]
[1741961825479,1.05151,1902.2,1902.0,41.85157]
[1741961825685,2.62834,1902.5,1902.0,40.8]
[1741961825886,5.83627,1902.4,1902.0,40.8]
[1741961826098,3.2078,1902.4,1902.0,40.8]
[1741961826479,10.8479,1902.3,1902.1,12.55342]
[1741961826679,1.05149,1902.2,1902.1,11.5019]
[1741961827981,10.8479,1902.3,1902.0,40.8]
[1741961828182,10.8479,1902.1,1901.6,3.2078]
[1741961828482,3.2078,1902.5,1902.0,3.2078]
[1741961828683,17.18783,1902.5,1902.1,58.9027]
[1741961828888,1.05149,1902.2,1902.1,40.8]
[1741961829277,11.3517,1902.2,1901.9,11.0857]
[1741961829481,12.40324,1902.2,1901.9,11.0857]
[1741961829682,11.3517,1902.2,1901.9,11.09358415]
[1741961829883,1.05157,1902.1,1902.0,1.05159]
[1741961830081,11.3517,1902.2,1901.9,11.09358415]
[1741961830287,1.0516,1902.0,1901.9,12.14523415]
[1741961830794,1.0516,1902.0,1901.9,12.14521415]
[1741961830984,1.0516,1902.0,1901.9,11.09358415]
[1741961831284,3.2078,1902.1,1901.9,11.09358415]
[1741961831487,1.0516,1902.0,1901.9,11.09358415]
[1741961831891,1.0516,1902.0,1901.9,12.14524415]
[1741961832088,1.05157,1902.1,1902.0,1.05158]
[1741961832393,1.0516,1902.0,1901.9,12.14522415]
[1741961832591,1.0516,1902.0,1901.9,11.09358415]
[1741961832785,1.0516,1902.0,1901.9,51.89358415]
[1741961833487,1.0516,1902.0,1901.9,52.94524415]
[1741961833784,1.0516,1902.0,1901.9,0.00788415]
[1741961834192,12.3354,1902.0,1901.9,0.00788415]
[1741961835290,14.8354,1902.0,1901.9,0.00788415]
[1741961835788,12.3354,1902.0,1901.9,0.00788415]
[1741961835992,3.2078,1902.1,1901.9,0.00788415]
[1741961836190,11.996,1902.0,1901.9,0.00788415]
[1741961836392,2.62875,1902.2,1901.9,0.00788415]
[1741961836393,1.05151,1902.2,1902.1,1.05152]
[1741961836694,1.05155,1902.1,1902.0,11.4848]
[1741961837794,3.2078,1902.1,1901.9,0.00788415]
[1741961837987,12.0622,1902.0,1901.9,0.00788415]
[1741961838496,1.05155,1902.1,1901.9,10.47728415]
[1741961838680,1.05155,1902.1,1901.9,18.77708415]
[1741961838886,11.0106,1902.2,1901.9,17.72548415]
[1741961839196,0.00788415,1902.3,1902.0,3.2078]
[1741961839388,0.00788415,1902.3,1902.1,10.4694]
[1741961839592,26.8088,1902.8,1902.2,3.2078]
[1741961839788,1.05106,1903.0,1902.5,2.62833]
[1741961839991,1.05119,1902.8,1902.6,15.7205]
[1741961840294,1.05119,1902.8,1902.7,11.5206]
[1741961840491,1.05107,1903.0,1902.7,54.4772]
[1741961840690,13.62563,1903.3,1902.8,1.05112]
[1741961840895,1.05897415,1903.0,1902.9,10.596]
[1741961841103,1.05897415,1903.0,1902.9,11.65499415]
[1741961841292,1.051,1903.1,1903.0,1.05102]
[1741961841498,1.051,1903.1,1903.0,10.596]
[1741961841692,1.051,1903.1,1903.0,11.64705]
[1741961841892,1.051,1903.1,1903.0,10.596]
[1741961842392,1.05886415,1903.2,1903.0,11.647]
[1741961842691,0.00788415,1903.2,1903.1,1.051]
[1741961844190,1.05081,1903.5,1903.4,1.05083]
[1741961844398,1.05072,1903.6,1903.5,1.05073]
[1741961844591,14.7691,1903.8,1903.4,1.05079]
[1741961844592,1.05078,1903.5,1903.4,1.05079]
[1741961844796,3.2078,1903.6,1903.2,15.8762]
[1741961845093,1.05089,1903.3,1903.2,10.4538]
[1741961845294,1.05089,1903.3,1903.2,11.50474]
[1741961845501,1.05089,1903.3,1903.2,10.4538]
[1741961846593,11.5613,1903.3,1903.0,1.05101]
[1741961846798,11.5613,1903.3,1903.0,10.6291]
[1741961846799,1.051,1903.1,1903.0,10.6291]
[1741961847800,1.05105,1903.0,1902.9,0.00788415]
[1741961847999,20.3197,1903.0,1901.9,3.2078]
[1741961848200,1.05157,1902.1,1902.0,10.6291]
[1741961848393,1.05157,1902.1,1901.7,11.68086]
[1741961848394,3.2078,1902.1,1901.7,11.68086]
[1741961848589,11.1339,1902.0,1901.7,11.68082]
[1741961848791,1.05171,1901.8,1901.7,10.6291]
[1741961848989,1.05188,1901.5,1901.4,10.6291]
[1741961849289,11.1339,1901.7,1900.9,3.2078]
[1741961849494,9.18009,1901.8,1901.3,0.00788415]
[1741961849495,11.1339,1901.4,1901.3,0.00788415]
[1741961849694,3.343,1901.8,1901.3,1.05985415]
[1741961849895,1.05183,1901.6,1901.4,10.9127]
[1741961850201,26.81868415,1901.9,1901.5,1.05186]
[1741961850401,26.81868415,1901.9,1901.6,10.9127]
[1741961850402,11.2412,1901.8,1901.6,10.9127]
[1741961850594,0.00788415,1901.9,1901.8,1.05171]
[1741961850788,0.00788415,1901.9,1901.6,10.9127]
[1741961850990,0.00788415,1901.9,1901.8,1.05171]